fUST/lending_fUST_20250219
["ID","MTS","AMOUNT","RATE_DAILY","PERIOD"]
[353551642,1739909455039,-659.48,0.0001526,2]
[353551643,1739909455049,-500.0,0.00015287,2]
[353551644,1739909455059,-500.0,0.00015287,2]
[353551645,1739909455068,-150.26,0.00015287,2]
[353551646,1739909455078,-150.26,0.00015287,2]
[353551647,1739909455087,-150.26,0.00015287,2]
[353551648,1739909455097,-650.47016863,0.00015287,2]
[353551649,1739909455107,-620.92,0.00015342,2]
[353551650,1739909455116,-521.68,0.00015342,2]
[353551651,1739909455126,-500.0,0.00015342,2]
[353551652,1739909455136,-539.96,0.00015342,2]
[353551653,1739909455145,-500.0,0.00015342,2]
[353551654,1739909455155,-2413.66,0.00015342,2]
[353551655,1739909455165,-702.02,0.00015342,2]
[353551656,1739909455175,-1009.77,0.00015342,2]
[353551657,1739909455186,-1176.05,0.00015342,2]
[353551658,1739909455197,-689.46,0.00015342,2]
[353551659,1739909455207,-2827.94,0.00015342,2]
[353551660,1739909455219,-580.85,0.00015342,2]
[353551661,1739909455230,-1037.37,0.00015342,2]
[353551662,1739909455241,-500.0,0.00015342,2]
[353551663,1739909455251,-18276.78,0.00015342,2]
[353551664,1739909455261,-1400.51,0.00015342,2]
[353551665,1739909455270,-743.21,0.00015342,2]
[353551666,1739909455280,-2445.59,0.00015342,2]
[353551667,1739909455289,-1538.97,0.00015342,2]
[353551668,1739909455299,-1574.81,0.00015342,2]
[353551669,1739909455309,-615.88870097,0.00015342,2]
[353551670,1739909455320,-729.26,0.00015342,2]
[353551671,1739909455329,-589.33,0.00015342,2]
[353551672,1739909455339,-950.8,0.00015342,2]
[353551673,1739909455351,-609.84718469,0.00015342,2]
[353551674,1739909455361,-652.43,0.00015342,2]
[353551675,1739909455371,-1991.59,0.00015342,2]
[353551676,1739909455381,-551.84,0.00015342,2]
[353551677,1739909455390,-500.0,0.00015342,2]
[353551678,1739909455400,-6658.31123625,0.00015342,2]
[353551679,1739909455619,-2729.07514372,0.0001309,2]
[353551680,1739909455630,-30963.67028688,0.0001309,2]
[353551681,1739909455640,-500.0,0.00013698,2]
[353551682,1739909455650,-500.0,0.00013698,2]
[353551683,1739909455662,-500.0,0.00013698,2]
[353551684,1739909455673,-500.0,0.00013698,2]
[353551685,1739909455683,-500.0,0.00013698,2]
[353551686,1739909455692,-500.0,0.0001378,2]
[353551687,1739909455702,-500.0,0.0001378,2]
[353551688,1739909455712,-215.70800819,0.00013863,2]
[353551689,1739909455725,-284.29199181,0.00013863,2]
[353551690,1739909455735,-360.6625419,0.00013863,2]
[353551705,1739909857556,400.0,9.041e-05,2]
[353551714,1739910368676,5000.0,0.000105,2]
[353551718,1739910377289,5000.0,0.000105,2]
[353551720,1739910385886,5000.0,0.000105,2]
[353551722,1739910393646,5000.0,0.000105,2]
[353551723,1739910402755,5000.0,0.000105,2]
[353551724,1739910411102,5000.0,0.000105,2]
[353551726,1739910418878,539.55441366,0.000105,2]
[353551728,1739910426105,-250.0,0.00010605,2]
[353551729,1739910426128,-158.8405508,0.00010778,2]
[353551730,1739910426151,-500.0,0.00011337,2]
[353551731,1739910426173,-300.0,0.00011556,2]
[353551732,1739910426195,-168.25078699,0.00011557,2]
[353551733,1739910426223,-500.0,0.00011557,2]
[353551734,1739910426247,-500.0,0.00011557,2]
[353551735,1739910426270,-500.0,0.00011557,2]
[353551736,1739910426292,-166.47793661,0.00011557,2]
[353551737,1739910426853,5000.0,0.000105,2]
[353551739,1739910448110,-677.72946266,0.00011441,2]
[353551773,1739910557183,-414.2976734,0.00011303,2]
[353551774,1739910557204,-4322.27053734,0.00011441,2]
[353551775,1739910557226,-300.0,0.00011555,2]
[353551776,1739910557247,-500.0,0.00011556,2]
[353551777,1739910557270,-500.0,0.00011556,2]
[353551778,1739910557291,-500.0,0.00011556,2]
[353551779,1739910557313,-500.0,0.00011556,2]
[353551780,1739910557336,-464.519738,0.00011556,2]
[353551781,1739910557357,-608.01781203,0.00011556,2]
[353551782,1739910557378,-500.0,0.00011556,2]
[353551783,1739910557399,-500.0,0.00011556,2]
[353551784,1739910557421,-500.0,0.00011556,2]
[353551785,1739910557442,-500.0,0.00011556,2]
[353551786,1739910557464,-500.0,0.00011556,2]
[353551787,1739910557486,-500.0,0.00011556,2]
[353551788,1739910557506,-500.0,0.00011556,2]
[353551789,1739910557528,-500.0,0.00011556,2]
[353551790,1739910557548,-317.14968621,0.00011556,2]
[353551791,1739910557573,-16.34511211,0.00011556,2]
[353551832,1739910632163,-161.3946203,0.00011303,2]
[353551834,1739910632173,-129.97876952,0.0001144,2]
[353551839,1739910632219,-4870.02123048,0.0001144,2]
[353551841,1739910632230,-300.0,0.00011555,2]
[353551842,1739910632240,-3044.28835452,0.00011558,2]
[353551844,1739910632253,-373.6340715,0.00011558,2]
[353551852,1739910632333,-21482.07757398,0.00011558,2]
[353551854,1739910632343,-855.83186803,0.00011971,2]
[353551856,1739910632352,-3792.79922277,0.00012027,2]
[353551858,1739910632362,-500.0,0.00012337,2]
[353551860,1739910632372,-500.0,0.00012564,2]
[353551862,1739910632382,-536.51845402,0.00012564,2]
[353551864,1739910632391,-58843.6284608,0.00012565,2]
[353551865,1739910632401,-420.0,0.0001269,2]
[353551867,1739910632411,-638.31062935,0.00012729,2]
[353551868,1739910632421,-1000.0,0.00013068,2]
[353551869,1739910632430,-500.0,0.00013337,2]
[353551870,1739910632440,-166.01073936,0.00013598,2]
[353551871,1739910632450,-500.0,0.00013673,2]
[353551872,1739910632459,-500.0,0.00013673,2]
[353551873,1739910632468,-500.0,0.00013673,2]
[353551874,1739910632477,-500.46242224,0.00013673,2]
[353551875,1739910632486,-537.01363365,0.00013673,2]
[353551876,1739910632495,-500.0,0.00013673,2]
[353551877,1739910632505,-163.97488698,0.00013673,2]
[353551878,1739910632514,-500.0,0.00013673,2]
[353551879,1739910632523,-202.88847706,0.00013673,2]
[353551880,1739910632532,-500.0,0.00013673,2]
[353551881,1739910632542,-152.01026776,0.00013673,2]
[353551882,1739910632552,-501.18039987,0.00013673,2]
[353551883,1739910632561,-500.0,0.00013673,2]
[353551884,1739910632571,-4929.22810334,0.00013679,2]
[353551885,1739910632582,-500.0,0.00013698,2]
[353551886,1739910632591,-500.0,0.00013698,2]
[353551887,1739910632600,-500.0,0.00013698,2]
[353551888,1739910632609,-500.91068453,0.00013698,2]
[353551889,1739910632620,-500.0,0.00013698,2]
[353551890,1739910632629,-501.42280111,0.00013698,2]
[353551891,1739910632639,-503.59163747,0.00013698,2]
[353551892,1739910632649,-500.0,0.00013698,2]
[353551893,1739910632658,-500.0,0.00013698,2]
[353551894,1739910632667,-500.0,0.00013698,2]
[353551895,1739910632675,-500.0,0.00013698,2]
[353551896,1739910632684,-500.0,0.00013698,2]
[353551897,1739910632694,-503.63709508,0.00013698,2]
[353551898,1739910632703,-500.0,0.00013698,2]
[353551899,1739910632713,-500.0,0.00013698,2]
[353551900,1739910632723,-500.0,0.00013698,2]
[353551901,1739910632733,-500.0,0.00013698,2]
[353551902,1739910632744,-579.38244099,0.00013698,2]
[353551903,1739910632754,-500.0,0.00013698,2]
[353551904,1739910632764,-477.91237698,0.00013698,2]
[353551905,1739910632774,-507.59176681,0.00013698,2]
[353551906,1739910632789,-500.0,0.00013698,2]
[353551907,1739910632799,-513.42902833,0.00013698,2]
[353551908,1739910632809,-500.0,0.00013698,2]
[353551909,1739910632819,-596.73377169,0.00013698,2]
[353551910,1739910632828,-500.0,0.00013698,2]
[353551911,1739910632838,-500.41883245,0.00013698,2]
[353551912,1739910632849,-500.0,0.00013698,2]
[353551913,1739910632859,-500.0,0.00013698,2]
[353551914,1739910632870,-500.0,0.00013698,2]
[353551915,1739910632880,-500.0,0.00013698,2]
[353551916,1739910632889,-500.0,0.00013698,2]
[353551917,1739910632900,-610.19031201,0.00013698,2]
[353551918,1739910632910,-500.0,0.00013698,2]
[353551919,1739910632920,-566.26956109,0.00013698,2]
[353551920,1739910632929,-500.0,0.00013698,2]
[353551921,1739910632939,-500.0,0.00013698,2]
[353551922,1739910632949,-500.0,0.00013698,2]
[353551923,1739910632959,-500.0,0.00013698,2]
[353551924,1739910632969,-500.0,0.00013698,2]
[353551925,1739910632978,-500.0,0.00013698,2]
[353551926,1739910632988,-500.73816969,0.00013698,2]
[353551927,1739910632998,-500.0,0.00013698,2]
[353551928,1739910633008,-500.0,0.00013698,2]
[353551929,1739910633019,-500.0,0.00013698,2]
[353551930,1739910633029,-500.0,0.00013698,2]
[353551931,1739910633039,-500.0,0.00013698,2]
[353551932,1739910633049,-500.0,0.00013698,2]
[353551933,1739910633060,-302.85887328,0.00013698,2]
[353551934,1739910633071,-500.0,0.00013698,2]
[353551935,1739910633081,-500.0,0.00013698,2]
[353551936,1739910633091,-509.35374891,0.00013698,2]
[353551937,1739910633101,-500.0,0.00013698,2]
[353551938,1739910633111,-500.0,0.00013698,2]
[353551939,1739910633124,-500.0,0.00013698,2]
[353551940,1739910633134,-298.05208723,0.00013698,2]
[353551941,1739910633145,-500.0,0.00013698,2]
[353551942,1739910633155,-500.0,0.00013698,2]
[353551943,1739910633166,-502.04530904,0.00013698,2]
[353551944,1739910633176,-500.0,0.00013698,2]
[353551945,1739910633186,-500.0,0.00013698,2]
[353551946,1739910633196,-500.96141064,0.00013698,2]
[353551947,1739910633206,-537.00279411,0.00013698,2]
[353551948,1739910633217,-501.44079961,0.00013698,2]
[353551949,1739910633227,-500.0,0.00013698,2]
[353551950,1739910633237,-561.90595037,0.00013698,2]
[353551951,1739910633247,-500.0,0.00013698,2]
[353551952,1739910633258,-500.0,0.00013698,2]
[353551953,1739910633268,-178.01080506,0.00013698,2]
[353551954,1739910633279,-500.0,0.00013698,2]
[353551955,1739910633289,-500.0,0.00013698,2]
[353551956,1739910633300,-500.0,0.00013698,2]
[353551957,1739910633312,-500.0,0.00013698,2]
[353551958,1739910633322,-500.0,0.00013698,2]
[353551959,1739910633333,-500.0,0.00013698,2]
[353551960,1739910633343,-506.40580424,0.00013698,2]
[353551961,1739910633353,-238.91887548,0.00013698,2]
[353551962,1739910633363,-500.0,0.00013698,2]
[353551963,1739910633375,-500.0,0.00013698,2]
[353551964,1739910633385,-500.0,0.00013698,2]
[353551965,1739910633395,-500.0,0.00013698,2]
[353551966,1739910633405,-500.0,0.00013698,2]
[353551967,1739910633415,-500.0,0.00013698,2]
[353551968,1739910633426,-489.72255846,0.00013698,2]
[353551969,1739910633435,-500.0,0.00013698,2]
[353551970,1739910633445,-352.65659882,0.00013698,2]
[353551971,1739910633455,-500.0,0.00013698,2]
[353551972,1739910633465,-500.0,0.00013698,2]
[353551973,1739910633475,-500.0,0.00013698,2]
[353551974,1739910633485,-513.82727135,0.00013698,2]
[353551975,1739910633495,-500.0,0.00013698,2]
[353551976,1739910633505,-500.0,0.00013698,2]
[353551977,1739910633515,-500.0,0.00013698,2]
[353551978,1739910633525,-500.0,0.00013698,2]
[353551979,1739910633535,-500.0,0.00013698,2]
[353551980,1739910633544,-500.0,0.00013698,2]
[353551981,1739910633553,-500.0,0.00013698,2]
[353551982,1739910633563,-500.0,0.00013698,2]
[353551983,1739910633573,-500.0,0.00013698,2]
[353551984,1739910633583,-500.0,0.00013698,2]
[353551985,1739910633593,-207.01405791,0.00013698,2]
[353551986,1739910633604,-598.04459135,0.00013698,2]
[353551987,1739910633615,-500.0,0.00013698,2]
[353551988,1739910633627,-501.04806849,0.00013698,2]
[353551989,1739910633637,-500.0,0.00013698,2]
[353551990,1739910633646,-500.0,0.00013698,2]
[353551991,1739910633656,-500.0,0.00013698,2]
[353551992,1739910633667,-500.0,0.00013698,2]
[353551993,1739910633678,-500.0,0.00013698,2]
[353551994,1739910633688,-500.0,0.00013698,2]
[353551995,1739910633698,-500.0,0.00013698,2]
[353551996,1739910633709,-500.0,0.00013698,2]
[353551997,1739910633719,-500.0,0.00013698,2]
[353551998,1739910633729,-500.0,0.00013698,2]
[353551999,1739910633739,-500.0,0.00013698,2]
[353552000,1739910633748,-500.0,0.00013698,2]
[353552001,1739910633758,-500.0,0.00013698,2]
[353552002,1739910633768,-500.0,0.00013698,2]
[353552003,1739910633779,-501.36615242,0.00013698,2]
[353552004,1739910633794,-500.0,0.00013698,2]
[353552005,1739910633805,-500.0,0.00013698,2]
[353552006,1739910633815,-500.0,0.00013698,2]
[353552007,1739910633826,-500.0,0.00013698,2]
[353552008,1739910633836,-500.0,0.00013698,2]
[353552009,1739910633846,-500.0,0.00013698,2]
[353552010,1739910633856,-500.0,0.00013698,2]
[353552011,1739910633867,-500.0,0.00013698,2]
[353552012,1739910633879,-500.0,0.00013698,2]
[353552013,1739910633889,-500.0,0.00013698,2]
[353552014,1739910633899,-500.0,0.00013698,2]
[353552015,1739910633909,-500.0,0.00013698,2]
[353552016,1739910633919,-500.0,0.00013698,2]
[353552017,1739910633929,-271.0707789,0.00013698,2]
[353552018,1739910633939,-500.0,0.00013698,2]
[353552019,1739910633949,-222.91450135,0.00013698,2]
[353552020,1739910633960,-500.0,0.00013698,2]
[353552021,1739910633970,-500.0,0.00013698,2]
[353552022,1739910633980,-500.0,0.00013698,2]
[353552023,1739910633990,-500.0,0.00013698,2]
[353552024,1739910634000,-500.0,0.00013698,2]
[353552025,1739910634010,-506.23186168,0.00013698,2]
[353552026,1739910634020,-500.0,0.00013698,2]
[353552027,1739910634030,-500.0,0.00013698,2]
[353552028,1739910634040,-324.10573333,0.00013698,2]
[353552029,1739910634050,-500.0,0.00013698,2]
[353552030,1739910634060,-500.0,0.00013698,2]
[353552031,1739910634069,-500.0,0.00013698,2]
[353552032,1739910634079,-500.0,0.00013698,2]
[353552033,1739910634089,-500.0,0.00013698,2]
[353552034,1739910634098,-500.0,0.00013698,2]
[353552035,1739910634108,-500.0,0.00013698,2]
[353552036,1739910634118,-500.0,0.00013698,2]
[353552037,1739910634128,-500.0,0.00013698,2]
[353552038,1739910634139,-360.48392684,0.00013698,2]
[353552039,1739910634148,-500.0,0.00013698,2]
[353552040,1739910634158,-500.57141468,0.00013698,2]
[353552041,1739910634169,-500.0,0.00013698,2]
[353552042,1739910634179,-500.0,0.00013698,2]
[353552043,1739910634188,-599.35161429,0.00013698,2]
[353552044,1739910634198,-500.61116275,0.00013698,2]
[353552045,1739910634208,-150.12808639,0.00013698,2]
[353552046,1739910634218,-500.0,0.00013698,2]
[353552047,1739910634228,-500.0,0.00013698,2]
[353552048,1739910634239,-500.0,0.00013698,2]
[353552049,1739910634248,-502.09228693,0.00013698,2]
[353552050,1739910634259,-636.52597841,0.00013698,2]
[353552051,1739910634269,-500.0,0.00013698,2]
[353552052,1739910634279,-500.0,0.00013698,2]
[353552053,1739910634288,-501.42871998,0.00013698,2]
[353552054,1739910634298,-501.13602181,0.00013698,2]
[353552055,1739910634308,-500.0,0.00013698,2]
[353552056,1739910634317,-500.0,0.00013698,2]
[353552057,1739910634327,-249.45076571,0.00013698,2]
[353552058,1739910634337,-500.0,0.00013698,2]
[353552059,1739910634347,-377.08332778,0.00013698,2]
[353552060,1739910634373,-500.0,0.00013698,2]
[353552061,1739910634385,-500.0,0.00013698,2]
[353552062,1739910634395,-500.0,0.00013698,2]
[353552063,1739910634405,-500.0,0.00013698,2]
[353552064,1739910634415,-500.0,0.00013698,2]
[353552065,1739910634425,-500.0,0.00013698,2]
[353552066,1739910634434,-502.05262185,0.00013698,2]
[353552067,1739910634445,-500.0,0.00013698,2]
[353552068,1739910634455,-500.0,0.00013698,2]
[353552069,1739910634465,-500.18575474,0.00013698,2]
[353552070,1739910634475,-500.0,0.00013698,2]
[353552071,1739910634485,-500.0,0.00013698,2]
[353552072,1739910634494,-500.0,0.00013698,2]
[353552073,1739910634504,-500.0,0.00013698,2]
[353552074,1739910634514,-500.0,0.00013698,2]
[353552075,1739910634524,-500.78189368,0.00013698,2]
[353552076,1739910634535,-500.0,0.00013698,2]
[353552077,1739910634545,-500.0,0.00013698,2]
[353552078,1739910634555,-500.0,0.00013698,2]
[353552079,1739910634565,-500.0,0.00013698,2]
[353552080,1739910634575,-500.21456781,0.00013698,2]
[353552081,1739910634586,-500.0,0.00013698,2]
[353552082,1739910634595,-500.0,0.00013698,2]
[353552083,1739910634605,-500.0,0.00013698,2]
[353552084,1739910634615,-500.0,0.00013698,2]
[353552085,1739910634627,-501.65558382,0.00013698,2]
[353552086,1739910634637,-500.0,0.00013698,2]
[353552087,1739910634796,-500.50899827,0.00013698,2]
[353552088,1739910634810,-500.0,0.00013698,2]
[353552089,1739910634820,-500.0,0.00013698,2]
[353552090,1739910634830,-500.0,0.00013698,2]
[353552091,1739910634839,-500.0,0.00013698,2]
[353552092,1739910634849,-500.0,0.00013698,2]
[353552093,1739910634858,-500.0,0.00013698,2]
[353552094,1739910634867,-501.00128565,0.00013698,2]
[353552095,1739910634878,-405.8240027,0.00013698,2]
[353552096,1739910634887,-500.0,0.00013698,2]
[353552097,1739910634897,-500.0,0.00013698,2]
[353552098,1739910634906,-500.0,0.00013698,2]
[353552099,1739910634916,-500.0,0.00013698,2]
[353552100,1739910634925,-500.0,0.00013698,2]
[353552101,1739910634934,-500.0,0.00013698,2]
[353552102,1739910634943,-500.0,0.00013698,2]
[353552103,1739910634953,-500.0,0.00013698,2]
[353552104,1739910634962,-500.13106171,0.00013698,2]
[353552105,1739910634971,-500.0,0.00013698,2]
[353552106,1739910634980,-500.13645186,0.00013698,2]
[353552107,1739910634990,-178.61843389,0.00013698,2]
[353552108,1739910634999,-500.0,0.00013698,2]
[353552109,1739910635009,-500.0,0.00013698,2]
[353552110,1739910635019,-500.0,0.00013698,2]
[353552111,1739910635028,-500.0,0.00013698,2]
[353552112,1739910635036,-500.0,0.00013698,2]
[353552113,1739910635045,-511.01475335,0.00013698,2]
[353552114,1739910635054,-500.0,0.00013698,2]
[353552115,1739910635063,-500.51202154,0.00013698,2]
[353552116,1739910635072,-507.53525325,0.00013698,2]
[353552117,1739910635082,-500.0,0.00013698,2]
[353552118,1739910635091,-500.0,0.00013698,2]
[353552119,1739910635100,-500.78384974,0.00013698,2]
[353552120,1739910635109,-713.18,0.00013698,2]
[353552121,1739910635118,-500.0,0.00013698,2]
[353552122,1739910635131,-213.45900279,0.00013698,2]
[353552123,1739910635141,-500.0,0.00013698,2]
[353552124,1739910635151,-500.0,0.00013698,2]
[353552125,1739910635160,-500.0,0.00013698,2]
[353552126,1739910635169,-502.51350386,0.00013698,2]
[353552127,1739910635178,-500.0,0.00013698,2]
[353552128,1739910635188,-500.0,0.00013698,2]
[353552129,1739910635198,-500.0,0.00013698,2]
[353552130,1739910635207,-500.0,0.00013698,2]
[353552131,1739910635217,-500.0,0.00013698,2]
[353552132,1739910635226,-500.0,0.00013698,2]
[353552133,1739910635236,-500.0,0.00013698,2]
[353552134,1739910635246,-500.0,0.00013698,2]
[353552135,1739910635256,-500.0,0.00013698,2]
[353552136,1739910635266,-500.41670126,0.00013698,2]
[353552137,1739910635275,-503.46566148,0.00013698,2]
[353552138,1739910635284,-500.0,0.00013698,2]
[353552139,1739910635294,-500.0,0.00013698,2]
[353552140,1739910635304,-500.0,0.00013698,2]
[353552141,1739910635314,-500.75468648,0.00013698,2]
[353552142,1739910635323,-500.0,0.00013698,2]
[353552143,1739910635333,-500.0,0.00013698,2]
[353552144,1739910635342,-500.0,0.00013698,2]
[353552145,1739910635351,-500.0,0.00013698,2]
[353552146,1739910635360,-500.0,0.00013698,2]
[353552147,1739910635369,-500.0,0.00013698,2]
[353552148,1739910635381,-500.0,0.00013698,2]
[353552149,1739910635390,-500.0,0.00013698,2]
[353552150,1739910635399,-500.0,0.00013698,2]
[353552151,1739910635408,-500.11175422,0.00013698,2]
[353552152,1739910635417,-290.57924227,0.00013698,2]
[353552153,1739910635426,-500.0,0.00013698,2]
[353552154,1739910635435,-500.0,0.00013698,2]
[353552155,1739910635444,-500.0,0.00013698,2]
[353552156,1739910635453,-500.0,0.00013698,2]
[353552157,1739910635462,-500.0,0.00013698,2]
[353552158,1739910635471,-500.0,0.00013698,2]
[353552159,1739910635480,-500.0,0.00013698,2]
[353552160,1739910635490,-503.3429473,0.00013698,2]
[353552161,1739910635500,-500.0,0.00013698,2]
[353552162,1739910635509,-500.0,0.00013698,2]
[353552163,1739910635519,-500.0,0.00013698,2]
[353552164,1739910635528,-500.0,0.00013698,2]
[353552165,1739910635538,-500.0,0.00013698,2]
[353552166,1739910635548,-500.0,0.00013698,2]
[353552167,1739910635557,-500.0,0.00013698,2]
[353552168,1739910635567,-500.0,0.00013698,2]
[353552169,1739910635576,-500.0,0.00013698,2]
[353552170,1739910635586,-500.0,0.00013698,2]
[353552171,1739910635596,-500.0,0.00013698,2]
[353552172,1739910635605,-500.0,0.00013698,2]
[353552173,1739910635614,-500.0,0.00013698,2]
[353552174,1739910635625,-502.99168045,0.00013698,2]
[353552175,1739910635634,-500.0,0.00013698,2]
[353552176,1739910635644,-371.98690133,0.00013698,2]
[353552177,1739910635653,-188.82039999,0.00013698,2]
[353552187,1739910638023,-301.79,0.00011557,2]
[353552188,1739910638079,-198.21,0.00011557,2]
[353552189,1739910638089,-500.0,0.00011557,2]
[353552190,1739910638099,-500.0,0.00011557,2]
[353552191,1739910638108,-500.0,0.00011557,2]
[353552192,1739910638118,-500.0,0.00011557,2]
[353552193,1739910638127,-500.0,0.00011557,2]
[353552194,1739910638137,-500.0,0.00011557,2]
[353552195,1739910638146,-500.0,0.00011557,2]
[353552196,1739910638156,-327.39920493,0.00011557,2]
[353552197,1739910638167,-172.60079507,0.00011557,2]
[353552198,1739910638176,-500.0,0.00011557,2]
[353552199,1739910638186,-500.0,0.00011557,2]
[353552200,1739910638195,-500.0,0.00011557,2]
[353552201,1739910638204,-500.0,0.00011557,2]
[353552202,1739910638211,-500.0,0.00011557,2]
[353552203,1739910638219,-500.0,0.00011557,2]
[353552204,1739910638226,-500.0,0.00011557,2]
[353552205,1739910638234,-500.0,0.00011557,2]
[353552206,1739910638242,-500.0,0.00011557,2]
[353552207,1739910638251,-537.50045823,0.00011557,2]
[353552208,1739910638260,-500.0,0.00011557,2]
[353552209,1739910638270,-500.0,0.00011557,2]
[353552210,1739910638279,-500.0,0.00011557,2]
[353552211,1739910638288,-311.57304391,0.00011557,2]
[353552212,1739910638298,-500.0,0.00011557,2]
[353552213,1739910638307,-500.0,0.00011557,2]
[353552214,1739910638316,-500.0,0.00011557,2]
[353552215,1739910638325,-500.0,0.00011557,2]
[353552216,1739910638335,-500.0,0.00011557,2]
[353552217,1739910638345,-500.0,0.00011557,2]
[353552218,1739910638354,-500.0,0.00011557,2]
[353552219,1739910638364,-500.0,0.00011557,2]
[353552220,1739910638375,-500.0,0.00011557,2]
[353552221,1739910638385,-500.0,0.00011557,2]
[353552222,1739910638394,-500.0,0.00011557,2]
[353552223,1739910638404,-500.0,0.00011557,2]
[353552224,1739910638414,-500.0,0.00011557,2]
[353552225,1739910638423,-500.0,0.00011557,2]
[353552226,1739910638432,-500.0,0.00011557,2]
[353552227,1739910638442,-500.0,0.00011557,2]
[353552228,1739910638453,-500.0,0.00011557,2]
[353552229,1739910638463,-311.17960001,0.00013698,2]
[353552230,1739910638472,-500.0,0.00013698,2]
[353552231,1739910638482,-500.0,0.00013698,2]
[353552232,1739910638491,-500.0,0.00013698,2]
[353552233,1739910638501,-500.0,0.00013698,2]
[353552234,1739910638511,-500.0,0.00013698,2]
[353552235,1739910638520,-500.0,0.00013698,2]
[353552236,1739910638530,-500.0,0.00013698,2]
[353552237,1739910638540,-500.0,0.00013698,2]
[353552238,1739910638549,-500.0,0.00013698,2]
[353552239,1739910638559,-500.0,0.00013698,2]
[353552240,1739910638569,-500.0,0.00013698,5]
[353552241,1739910638578,-521.92,0.00013698,2]
[353552242,1739910638587,-500.0,0.00013698,2]
[353552243,1739910638597,-500.0,0.00013698,2]
[353552244,1739910638606,-500.0,0.00013698,2]
[353552245,1739910638615,-500.0,0.00013698,2]
[353552246,1739910638625,-500.0,0.00013698,2]
[353552247,1739910638634,-500.0,0.00013698,2]
[353552248,1739910638644,-500.0,0.00013698,2]
[353552249,1739910638653,-531.24809456,0.00013698,2]
[353552250,1739910638663,-500.0,0.00013698,2]
[353552251,1739910638673,-500.0,0.00013698,2]
[353552252,1739910638682,-531.85326901,0.00013698,2]
[353552253,1739910638692,-500.0,0.00013698,2]
[353552254,1739910638702,-500.0,0.00013698,2]
[353552255,1739910638712,-500.0,0.00013698,2]
[353552256,1739910638721,-500.0,0.00013698,2]
[353552257,1739910638730,-500.0,0.00013698,2]
[353552258,1739910638738,-500.0,0.00013698,2]
[353552259,1739910638748,-500.0,0.00013698,2]
[353552260,1739910638757,-500.0,0.00013698,2]
[353552261,1739910638767,-500.0,0.00013698,2]
[353552262,1739910638778,-500.0,0.00013698,2]
[353552263,1739910638788,-500.0,0.00013698,2]
[353552264,1739910638798,-504.33665307,0.00013698,2]
[353552265,1739910638807,-503.43545529,0.00013698,2]
[353552266,1739910638817,-500.0,0.00013698,2]
[353552267,1739910638836,-500.0,0.00013698,2]
[353552268,1739910638852,-500.0,0.00013698,2]
[353552269,1739910638863,-500.0,0.00013698,2]
[353552270,1739910638871,-500.0,0.00013698,2]
[353552271,1739910638880,-440.60911276,0.00013698,2]
[353552272,1739910638890,-500.0,0.00013698,2]
[353552273,1739910638899,-500.0,0.00013698,2]
[353552274,1739910638908,-500.0,0.00013698,2]